bitfinex/quotes_SOLUSD_20250216
["timestamp","ask_amount","ask_price","bid_price","bid_amount"]
[1739716518249,85.07760591,190.28,190.2,1.0]
[1739716518453,79.82200591,190.33,190.22,1.0]
[1739716518678,5.2543,190.32,190.24,1.0]
[1739716519186,7.5869,190.28,190.18,0.063]
[1739716519490,17.32871709,190.27,190.09,1.5493]
[1739716519674,13.41184853,190.25,190.09,1.5493]
[1739716519847,13.41184853,190.23,190.09,1.5493]
[1739716520047,18.53414513,190.23,190.09,1.5493]
[1739716520980,13.41184853,190.21,190.08,8.02639637]
[1739716521147,13.41184853,190.21,190.08,9.02639637]
[1739716521347,13.41184853,190.21,190.08,10.02639637]
[1739716521568,5.1222966,190.22,190.1,1.0]
[1739716521776,18.3977,190.24,190.05,14.96114853]
[1739716521777,18.3977,190.24,190.11,1.0]
[1739716522155,1.31548573,190.2,190.11,1.0]
[1739716522864,1.31548573,190.2,190.09,1.0]
[1739716523155,1.31548573,190.2,190.1,1.0]
[1739716523462,1.31548573,190.19,190.1,1.0]
[1739716523662,1.31548573,190.19,190.08,1.0]
[1739716523861,1.31548573,190.19,190.07,1.0]
[1739716524179,18.66994853,190.18,190.07,1.0]
[1739716524583,31.81534853,190.18,190.06,2.0]
[1739716524781,33.13083426,190.18,190.06,2.0]
[1739716525079,13.41184853,190.16,190.05,2.5493]
[1739716525279,13.41184853,190.16,190.05,1.5493]
[1739716525658,93.23385444,190.16,190.03,1.0]
[1739716525847,93.23385444,190.16,190.01,1.6242]
[1739716526254,13.41184853,190.14,189.98,7.2845]
[1739716526556,13.41184853,190.12,189.98,6.2845]
[1739716526765,13.41184853,190.1,189.98,0.063]
[1739716526965,6.1132,190.09,189.98,0.063]
[1739716528071,13.41184853,190.07,189.98,0.063]
[1739716528271,5.2614,190.06,189.98,0.063]
[1739716528884,13.41184853,190.05,189.98,0.063]
[1739716529179,18.4151,190.06,189.98,0.063]
[1739716529978,14.72733426,190.05,189.98,0.063]
[1739716530281,13.41184853,190.03,189.98,0.063]
[1739716531093,1.31548573,190.02,189.98,0.063]
[1739716531905,5.2628,190.01,189.98,0.063]
[1739716533200,13.41184853,190.0,189.98,0.063]
[1739716536109,1.31692897,190.0,189.97,0.063]
[1739716536804,5.2634,189.99,189.97,0.063]
[1739716537009,13.41184853,189.98,189.97,0.063]
[1739716537489,13.41184853,189.98,189.97,0.0001]
[1739716538904,1.31692897,189.98,189.97,0.0001]
[1739716539301,6.58062897,189.98,189.97,0.0001]
[1739716540596,18.67554853,189.98,189.97,0.0001]
[1739716542918,19.99263692,189.98,189.97,0.0001]
[1739716545113,6.58078839,189.98,189.97,0.0001]
[1739716545931,5.2637,189.98,189.97,0.0001]
[1739716546220,5.2628,190.01,189.97,0.0001]
[1739716547399,5.2623,190.03,189.97,0.0001]
[1739716549641,26.38657291,190.04,189.98,1.0]
[1739716549939,31.64867291,190.04,189.98,1.0]
[1739716550507,26.38657291,190.04,189.98,1.0]
[1739716550703,26.38657291,190.04,189.99,1.0]
[1739716550938,26.38657291,190.04,189.99,2.0]
[1739716551137,82.6,190.09,190.0,2.0]
[1739716551338,9.3609,190.08,190.0,2.0]
[1739716551533,5.2609,190.08,189.98,1.0]
[1739716551836,5.2609,190.08,189.98,2.0]
[1739716552040,5.2609,190.08,189.99,1.0]
[1739716553946,5.2609,190.08,189.97,2.0001]
[1739716554119,5.2609,190.08,189.98,1.0]
[1739716554844,13.41184853,190.07,189.97,0.0001]
[1739716555040,13.41184853,190.07,189.97,1.0001]
[1739716556542,13.41184853,190.05,189.97,0.0001]
[1739716556733,82.6,190.04,189.97,0.0001]
[1739716556927,5.2623,190.03,189.97,0.0001]
[1739716560623,87.862,190.04,189.97,1.0001]
[1739716560824,1.31653034,190.02,189.97,0.0001]
[1739716561152,5.2628,190.01,189.97,0.0001]
[1739716561342,6.57913034,190.02,189.97,0.0001]
[1739716562038,5.2626,190.02,189.97,0.0001]
[1739716562838,18.4191,190.02,189.97,0.0001]
[1739716563044,1.31650158,190.01,189.97,0.0001]
[1739716563728,13.41184853,190.0,189.97,0.0001]
[1739716564330,83.91650158,190.01,189.97,0.0001]
[1739716564848,1.31650158,189.99,189.97,0.0001]
[1739716565749,5.2637,189.98,189.97,0.0001]
[1739716565951,6.58020158,189.98,189.97,0.0001]
[1739716567361,1.31650158,189.98,189.97,0.0001]
[1739716567534,1.31650158,189.98,189.97,8.2104]
[1739716568360,1.31650158,189.98,189.97,13.4743]
[1739716568563,82.6,190.04,190.0,2.0]
[1739716568748,5.2609,190.09,190.0,2.0]
[1739716568749,4.1,190.09,190.01,1.0]
[1739716568944,5.2603,190.11,190.02,1.0]
[1739716569268,4.1,190.1,190.03,1.0]
[1739716569839,5.2604,190.1,190.03,1.0]
[1739716570040,4.1,190.1,190.03,2.0]
[1739716570343,87.8598,190.12,190.05,1.5904]
[1739716570652,33.17734568,190.14,190.07,1.0]
[1739716571150,27.91804568,190.14,190.08,1.0]
[1739716571649,5.2884,190.17,190.11,1.0]
[1739716571854,0.03,190.17,190.1,2.0]
[1739716572174,0.03,190.17,190.1,1.0]
[1739716572551,0.03,190.17,190.1,2.0]
[1739716572753,0.03,190.17,190.11,1.0]
[1739716575772,0.03,190.17,190.1,1.0]
[1739716575978,0.03,190.17,190.09,2.0]
[1739716577285,0.03,190.17,190.09,1.0]
[1739716577577,0.03,190.17,190.09,2.0]
[1739716577947,0.03,190.17,190.1,1.0]
[1739716578463,0.03,190.17,190.09,2.0]
[1739716580375,0.03,190.17,190.08,1.0]
[1739716581283,0.03,190.17,190.12,1.0]
[1739716581447,0.03,190.17,190.09,1.0]
[1739716581650,0.03,190.17,190.1,1.0]
[1739716582981,13.44184853,190.17,190.07,6.5502]
[1739716583277,82.6,190.16,190.06,2.0]
[1739716583485,4.1,190.15,190.07,1.0]
[1739716583853,4.1,190.15,190.09,1.0]
[1739716584056,4.1,190.15,190.06,1.0]
[1739716584472,18.4074,190.14,190.05,2.5904]
[1739716585271,101.0074,190.14,190.05,1.5904]
[1739716585471,101.0074,190.14,190.04,1.0]
[1739716586476,101.0074,190.14,190.06,1.0]
[1739716588695,101.0074,190.14,190.06,2.0]
[1739716589686,101.0074,190.14,190.07,1.0]
[1739716590293,87.8592,190.14,190.08,1.0]
[1739716590473,0.03,190.17,190.09,2.0]
[1739716590684,0.03,190.17,190.1,2.0]
[1739716590967,0.03,190.17,190.11,1.0]
[1739716591169,5.2885,190.17,190.11,2.0]
[1739716591370,5.2885,190.17,190.12,1.0]
[1739716592377,0.03,190.17,190.12,1.0]
[1739716592992,0.03,190.17,190.11,1.0]
[1739716594077,0.03,190.17,190.1,2.595]
[1739716594286,0.03,190.17,190.11,1.0]
[1739716594489,0.03,190.17,190.13,1.0]
[1739716594895,0.03,190.17,190.12,1.0]
[1739716595996,0.03,190.17,190.11,1.0]
[1739716596170,0.03,190.17,190.12,1.0]
[1739716598589,0.03,190.17,190.14,1.0]
[1739716598781,0.03,190.17,190.16,2.0]
[1739716598975,0.03,190.17,190.16,1.0]
[1739716599371,0.03,190.17,190.16,2.0]
[1739716599699,0.03,190.24,190.2,1.0]
[1739716599871,0.03,190.24,190.21,2.0]
[1739716600199,0.03,190.24,190.23,2.0]
[1739716600883,0.03,190.24,190.23,1.0]
[1739716601066,0.03,190.24,190.21,2.0]
[1739716601262,0.03,190.24,190.22,1.0]
[1739716601501,0.03,190.24,190.21,1.0]
[1739716603096,0.03,190.24,190.21,2.0]
[1739716603465,0.03,190.24,190.21,1.0]
[1739716603666,0.03,190.24,190.19,1.0]
[1739716604067,0.03,190.24,190.18,2.0]
[1739716604274,0.03,190.24,190.19,1.0]
[1739716604471,0.03,190.24,190.18,1.0]
[1739716604995,0.03,190.24,190.17,1.0]
[1739716605367,82.6,190.23,190.15,1.0]
[1739716605599,4.1,190.22,190.14,1.0]
[1739716605802,4.1,190.22,190.14,2.0]
[1739716606007,4.1,190.22,190.16,1.0]
[1739716606912,5.2573,190.21,190.16,1.0]
[1739716607307,87.8569,190.23,190.16,2.0]
[1739716607480,5.2569,190.23,190.18,2.0]
[1739716607806,5.2569,190.23,190.19,1.0]
[1739716608883,0.03,190.24,190.18,1.0]
[1739716609279,0.03,190.24,190.17,2.0]
[1739716609479,0.03,190.24,190.18,1.0]
[1739716610387,0.03,190.24,190.18,2.0]
[1739716611910,0.03,190.24,190.19,1.0]
[1739716612309,0.03,190.24,190.18,1.0]
[1739716612499,0.03,190.24,190.16,1.0]
[1739716613204,0.03,190.24,190.15,2.0]
[1739716613506,82.6,190.23,190.14,1.063]
[1739716614186,82.6,190.23,190.16,1.0]
[1739716614392,4.1,190.22,190.16,1.0]
[1739716614993,5.2573,190.21,190.16,1.0]
[1739716615706,5.2573,190.21,190.17,1.0]
[1739716615882,5.2866,190.24,190.21,1.0]
[1739716616084,5.2866,190.24,190.2,1.0]
[1739716616985,0.03,190.24,190.2,1.0]
[1739716618391,0.03,190.24,190.21,1.0]
[1739716618581,0.03,190.24,190.22,1.0]
[1739716618783,0.03,190.24,190.21,1.0]
[1739716619699,0.03,190.24,190.18,1.0]
[1739716619894,0.03,190.24,190.2,1.0]
[1739716620487,0.03,190.24,190.21,2.0]
[1739716621111,0.03,190.24,190.21,1.0]
[1739716621681,0.03,190.24,190.19,1.0]
[1739716621992,0.03,190.24,190.2,1.0]
[1739716622189,0.03,190.24,190.19,2.0]
[1739716622583,0.03,190.24,190.19,1.0]
[1739716622785,0.03,190.24,190.19,2.0]
[1739716622997,0.03,190.24,190.22,1.0]
[1739716623200,0.03,190.24,190.23,1.0]
[1739716624007,0.03,190.24,190.23,2.0]
[1739716624193,0.03,190.24,190.23,7.2567]
[1739716624394,0.03,190.24,190.23,8.9]
[1739716624593,5.24953144,190.31,190.23,8.9]
[1739716624793,5.24953144,190.31,190.26,2.0]
[1739716625494,5.2537,190.34,190.26,2.0]
[1739716626015,5.2537,190.34,190.27,1.0]
[1739716626610,5.2537,190.34,190.26,2.0]
[1739716626917,5.2537,190.34,190.26,1.0]
[1739716627289,18.388,190.34,190.25,1.0]
[1739716627516,13.1343,190.34,190.24,1.0]
[1739716627727,13.1343,190.34,190.23,3.6433]
[1739716628016,13.1343,190.34,190.24,2.0]
[1739716628017,0.03,190.31,190.24,2.0]
[1739716628191,0.03,190.31,190.25,1.0]
[1739716629194,0.03,190.31,190.27,1.0]
[1739716629616,0.03,190.31,190.27,2.0]
[1739716629821,0.03,190.31,190.29,1.0]
[1739716630007,0.03,190.31,190.29,2.0]
[1739716630317,0.03,190.31,190.3,2.0]
[1739716631895,0.03,190.31,190.3,7.2548]
[1739716632095,0.03,190.31,190.3,2.0]
[1739716632323,0.03,190.31,190.3,20.66664853]
[1739716632498,0.03,190.36,190.35,2.0]
[1739716632826,0.03,190.36,190.35,1.0]
[1739716633825,0.03,190.36,190.33,1.0]
[1739716634026,0.03,190.36,190.32,1.0]
[1739716634205,0.03,190.36,190.31,1.0]
[1739716634901,0.03,190.36,190.32,1.0]
[1739716635192,0.03,190.36,190.33,1.0]
[1739716636014,0.03,190.36,190.32,1.0]
[1739716636406,0.03,190.36,190.33,1.0]
[1739716636618,0.03,190.36,190.35,2.0]
[1739716636802,0.03,190.36,190.35,1.0]
[1739716638226,0.03,190.36,190.35,2.0]
[1739716639034,0.03,190.36,190.35,7.2534]
[1739716639327,0.03,190.36,190.35,2.0]
[1739716641421,0.03,190.36,190.35,7.2534]
[1739716642304,0.03,190.36,190.35,21.45300569]
[1739716642629,0.03,190.36,190.35,20.66524853]
[1739716645268,0.03,190.44,190.43,1.0]
[1739716645423,0.03,190.44,190.43,2.0]
[1739716647943,0.03,190.44,190.43,16.1992672]
[1739716648150,0.03,190.44,190.43,15.41184853]
[1739716648335,17.8978,190.55,190.46,1.0]
[1739716648532,4.7779,190.55,190.5,1.0]
[1739716648848,4.7779,190.55,190.5,2.0]
[1739716649321,4.7779,190.55,190.51,1.0]
[1739716650727,0.03,190.56,190.52,1.0]
[1739716652451,0.03,190.56,190.49,2.0]
[1739716652634,0.03,190.56,190.5,1.0]
[1739716652834,0.03,190.56,190.48,1.0]
[1739716653047,0.03,190.56,190.46,1.0]
[1739716653349,0.03,190.56,190.47,1.0]
[1739716654359,0.03,190.56,190.45,2.0]
[1739716654650,13.41184853,190.53,190.41,1.0]
[1739716654857,13.41184853,190.53,190.38,85.22]
[1739716655153,13.41184853,190.51,190.4,1.0]
[1739716655351,13.41184853,190.51,190.39,1.0]
[1739716655830,13.41184853,190.51,190.41,1.0]
[1739716656236,13.41184853,190.51,190.41,2.0]
[1739716656549,18.3726,190.5,190.42,1.0]
[1739716656726,5.2493,190.5,190.44,2.0]
[1739716656926,19.7362,190.54,190.47,1.0]
[1739716657133,5.2485,190.53,190.48,2.0]
[1739716657333,5.2485,190.53,190.49,1.0]
[1739716657837,5.2485,190.53,190.48,1.0]
[1739716658256,1.63,190.55,190.48,1.0]
[1739716658257,5.2482,190.54,190.48,1.0]
[1739716658766,5.2482,190.54,190.48,2.0]
[1739716659137,5.2482,190.54,190.49,2.0]
[1739716660468,0.03,190.56,190.49,2.0]
[1739716661264,0.03,190.56,190.51,1.0]
[1739716662557,0.03,190.56,190.51,2.0]
[1739716664777,0.03,190.56,190.53,2.0]
[1739716664976,0.03,190.56,190.55,1.0]
[1739716665572,0.03,190.56,190.55,2.0]
[1739716666553,0.03,190.56,190.53,1.0]
[1739716666874,0.03,190.56,190.54,1.0]
[1739716667048,0.03,190.56,190.55,1.0]
[1739716667252,0.03,190.56,190.54,1.0]
[1739716667576,0.03,190.56,190.55,2.0]
[1739716667877,0.03,190.56,190.55,1.0]
[1739716668263,0.03,190.56,190.55,2.0]
[1739716669149,0.03,190.56,190.55,1.0]
[1739716669571,0.03,190.56,190.55,2.0]
[1739716669775,0.03,190.56,190.55,1.0]
[1739716675571,0.03,190.56,190.55,2.0]
[1739716679365,0.03,190.56,190.55,1.0]
[1739716681282,0.03,190.56,190.55,1.063]
[1739716682192,0.03,190.56,190.55,0.063]
[1739716683294,0.03,190.56,190.55,0.0001]
[1739716685865,0.03,190.56,190.55,2.0001]
[1739716687682,0.03,190.56,190.55,3.6386]
[1739716687868,0.03,190.56,190.55,8.8865]
[1739716688280,0.03,190.56,190.55,3.6386]
[1739716688481,0.03,190.56,190.55,2.0001]
[1739716689472,0.03,190.56,190.55,1.0001]
[1739716689677,0.03,190.56,190.55,2.0001]
[1739716694289,0.03,190.56,190.55,7.248]
[1739716694790,0.03,190.56,190.55,2.78705831]
[1739716695484,0.03,190.56,190.55,21.44680684]
[1739716695800,0.03,190.56,190.55,22.99680684]
[1739716696002,0.03,190.64,190.63,2.0]
[1739716696794,0.03,190.64,190.63,17.74845845]
[1739716697587,0.03,190.64,190.63,3.55]
[1739716697774,0.03,190.64,190.63,2.0]
[1739716698599,0.03,190.64,190.63,1.0]
[1739716698802,0.03,190.64,190.63,2.0]
[1739716699171,0.03,190.64,190.63,1.0]
[1739716699477,0.03,190.64,190.63,2.0]
[1739716700083,0.03,190.64,190.62,2.0]
[1739716700379,0.03,190.64,190.59,2.0]
[1739716700585,0.03,190.64,190.6,1.0]
[1739716700783,0.03,190.64,190.58,1.0]
[1739716701098,0.03,190.64,190.56,1.0]
[1739716701400,0.03,190.64,190.55,1.0001]
[1739716701781,0.03,190.64,190.55,0.0001]
[1739716702005,13.41184853,190.62,190.55,0.0001]
[1739716702189,31.77284853,190.62,190.55,0.0001]
[1739716702893,36.29302846,190.62,190.55,0.0001]
[1739716703091,62.52312846,190.62,190.55,0.0001]
[1739716703292,13.41184853,190.6,190.55,0.0001]
[1739716704202,13.41184853,190.56,190.55,0.0001]
[1739716706085,18.65944853,190.56,190.55,0.0001]
[1739716709088,13.41184853,190.54,190.51,0.0001]
[1739716710183,5.2485,190.53,190.51,0.0001]
[1739716710587,13.41184853,190.52,190.51,0.0001]
[1739716710794,5.2485,190.53,190.51,0.0001]
[1739716711704,5.2479,190.55,190.51,0.0001]
[1739716711915,5.2479,190.55,190.52,1.0]
[1739716712514,18.65924853,190.57,190.52,1.0]
[1739716712721,5.2463,190.61,190.55,1.0]
[1739716712923,5.2463,190.61,190.56,1.0]
[1739716713216,5.2463,190.61,190.56,2.0]
[1739716713597,13.41184853,190.6,190.55,1.0]
[1739716713806,13.41184853,190.6,190.54,2.0]
[1739716714208,13.41184853,190.6,190.54,1.0]
[1739716714406,13.41184853,190.6,190.53,1.0]
[1739716714719,13.41184853,190.58,190.51,0.0001]
[1739716715093,6.2523,190.57,190.51,0.0001]
[1739716715288,13.41184853,190.56,190.51,0.0001]
[1739716716695,5.2479,190.55,190.51,1.0001]
[1739716717220,5.2479,190.55,190.51,0.0001]
[1739716717722,18.3678,190.55,190.51,0.0001]
[1739716717906,13.41184853,190.54,190.51,0.0001]
[1739716718701,5.2485,190.53,190.51,0.0001]
[1739716719239,13.41184853,190.52,190.51,0.0001]
[1739716719721,19.58174853,190.52,190.51,0.0001]
[1739716720525,13.41184853,190.52,190.51,0.0001]
[1739716720727,18.66034853,190.53,190.51,0.0001]
[1739716720910,5.2485,190.53,190.51,0.0001]
[1739716721236,18.66034853,190.53,190.51,0.0001]
[1739716721737,5.2485,190.53,190.51,0.0001]
[1739716721901,5.2474,190.57,190.53,1.0]
[1739716722101,5.2474,190.57,190.51,0.0001]
[1739716722102,5.2474,190.57,190.56,1.0]
[1739716722420,13.1152,190.62,190.58,1.0]
[1739716722623,13.1152,190.62,190.56,2.0]
[1739716722926,18.3612,190.62,190.56,1.0]
[1739716723515,18.3612,190.62,190.57,2.0]
[1739716723703,18.3612,190.62,190.56,2.0]
[1739716723903,13.41184853,190.61,190.56,1.0]
[1739716725124,13.41184853,190.59,190.56,1.0]
[1739716725629,5.2465,190.6,190.56,1.0]
[1739716726213,13.41184853,190.59,190.54,2.0]
[1739716726412,0.03,190.58,190.55,1.0]
[1739716726814,0.03,190.58,190.54,1.0]
[1739716727807,0.03,190.58,190.51,0.0001]
[1739716727808,13.41184853,190.57,190.53,1.0]
[1739716728217,18.3949,190.58,190.53,1.0]
[1739716729032,13.41184853,190.57,190.53,1.0]
[1739716729219,18.3949,190.58,190.53,2.0]
[1739716729939,0.03,190.58,190.53,2.0]
[1739716730738,0.03,190.58,190.51,0.0001]
[1739716730739,0.03,190.58,190.55,1.0]
[1739716731210,0.03,190.58,190.53,2.0]
[1739716731416,0.03,190.58,190.53,1.0]
[1739716731623,0.03,190.58,190.54,1.0]
[1739716731935,0.03,190.58,190.53,2.0]
[1739716733018,1.0,190.52,190.51,0.0001]
[1739716733223,1.0,190.51,190.35,0.063]
[1739716733442,14.70326422,190.51,190.35,0.063]
[1739716733639,13.41184853,190.5,190.35,0.063]
[1739716733844,13.41184853,190.48,190.35,0.063]
[1739716734048,13.41184853,190.46,190.35,0.063]
[1739716736149,5.2504,190.46,190.35,0.063]
[1739716738158,13.41184853,190.49,190.35,0.063]
[1739716738159,5.2498,190.48,190.35,0.063]
[1739716739644,82.6,190.51,190.35,13.47484853]
[1739716739855,18.3726,190.5,190.36,0.78770752]
[1739716740737,18.3726,190.5,190.35,13.47484853]
[1739716741632,18.3726,190.5,190.35,19.51577186]
[1739716742454,18.3726,190.5,190.35,20.51577186]
[1739716742653,5.2493,190.5,190.35,33.64947186]
[1739716742864,5.2493,190.5,190.39,1.6475]
[1739716743158,5.2493,190.5,190.4,6.2908]
[1739716743654,13.41184853,190.49,190.39,1.6475]
[1739716744758,5.2498,190.48,190.39,1.6475]
[1739716745656,13.41184853,190.47,190.36,6.2908]
[1739716745834,102.64444853,190.47,190.35,0.063]
[1739716746460,96.01184853,190.47,190.35,0.063]
[1739716746937,5.2504,190.46,190.35,5.3164]
[1739716747551,13.41184853,190.45,190.35,0.063]
[1739716748759,13.1274,190.44,190.35,0.063]
[1739716750336,1.0,190.37,190.31,0.063]
[1739716750642,1.0,190.37,190.2,1.6028]
[1739716750643,13.41184853,190.36,190.2,1.6028]
[1739716750842,18.3871,190.35,190.2,1.6028]
[1739716751174,13.41184853,190.34,190.2,1.6028]
[1739716752043,13.41184853,190.32,190.2,1.6028]
[1739716752846,5.2545,190.31,190.2,1.6028]
[1739716755047,5.2545,190.31,190.2,1.6658]
[1739716757084,13.41184853,190.3,190.2,1.6658]
[1739716757266,13.41184853,190.3,190.2,0.063]
[1739716757267,96.01184853,190.3,190.2,0.063]
[1739716758583,13.41184853,190.28,190.2,0.063]
[1739716759485,5.2551,190.29,190.2,0.063]
[1739716761371,13.41184853,190.28,190.2,0.063]
[1739716761684,5.2551,190.29,190.2,0.063]
[1739716762259,18.3929,190.29,190.2,0.063]
[1739716762780,5.2551,190.29,190.2,0.063]
[1739716763889,13.41184853,190.31,190.2,0.063]
[1739716764190,31.80274853,190.31,190.2,0.063]
[1739716765267,32.80274853,190.31,190.2,0.063]
[1739716765476,31.80274853,190.31,190.2,0.063]
[1739716765880,58.07564853,190.31,190.2,0.063]
[1739716766289,59.07564853,190.31,190.2,0.063]
[1739716766497,58.07564853,190.31,190.2,0.063]
[1739716767873,53.6509,190.28,190.2,0.063]
[1739716768190,13.41184853,190.26,190.2,0.063]
[1739716768872,14.41184853,190.27,190.2,0.063]
[1739716769380,13.41184853,190.25,190.2,0.063]
[1739716769779,10.91184853,190.25,190.2,0.063]
[1739716770485,45.6756,190.26,190.2,0.063]
[1739716770486,18.3977,190.24,190.2,0.063]
[1739716770670,18.3977,190.24,190.2,0.0001]
[1739716771903,13.41184853,190.23,190.2,0.0001]
[1739716772580,44.6849,190.22,190.15,0.063]
[1739716773000,13.41184853,190.21,190.15,0.063]
[1739716774997,18.4016,190.2,190.15,0.063]
[1739716775589,13.41184853,190.19,190.14,0.0001]
[1739716775792,21.47824853,190.19,190.14,0.0001]
[1739716776389,22.47824853,190.19,190.14,0.0001]
[1739716776902,21.47824853,190.19,190.14,0.0001]
[1739716777898,13.41184853,190.17,190.11,0.0001]
[1739716778088,1.0,190.15,190.11,0.0001]
[1739716778701,13.41184853,190.14,190.11,0.0001]
[1739716779913,13.41184853,190.12,190.11,0.0001]
[1739716780484,14.41184853,190.12,190.11,0.0001]
[1739716780691,13.41184853,190.12,190.11,0.0001]
[1739716781307,14.41184853,190.12,190.11,0.0001]
[1739716781910,16.03124853,190.12,190.11,0.0001]
[1739716782090,21.29104853,190.12,190.11,0.0001]
[1739716782295,13.41184853,190.06,190.0,0.063]
[1739716782612,13.41184853,190.07,190.0,0.063]
[1739716783408,18.4151,190.06,190.0,0.063]
[1739716783719,20.71697166,190.06,190.0,0.063]
[1739716784091,18.4151,190.06,190.0,0.063]
[1739716784620,13.41184853,190.05,190.0,0.063]
[1739716785322,18.4171,190.04,190.0,0.063]
[1739716789023,13.1551,190.04,190.0,0.063]
[1739716792906,13.1551,190.04,189.94,0.03]
[1739716793607,13.41184853,190.03,189.94,0.03]
[1739716795708,18.4191,190.02,189.94,0.03]
[1739716796343,13.41184853,190.01,189.94,0.03]
[1739716796831,14.1578,190.0,189.94,0.03]
[1739716797021,14.41184853,189.99,189.86,1.6524]
[1739716797232,13.41184853,189.99,189.86,1.6524]
[1739716798135,13.41184853,189.97,189.86,1.6524]
[1739716799224,18.4248,189.96,189.86,1.6524]
[1739716799936,18.4248,189.96,189.86,1.7154]
[1739716800645,18.4248,189.96,189.86,0.063]
[1739716800646,13.1606,189.96,189.86,0.063]
[1739716800817,13.41184853,189.95,189.86,0.063]
[1739716802326,14.60393246,189.95,189.86,0.063]
[1739716802531,19.27783931,189.95,189.86,0.063]
[1739716802836,13.41184853,189.91,189.86,0.0001]
[1739716803035,1.0,189.91,189.82,0.063]
[1739716803240,13.41184853,189.89,189.82,0.063]
[1739716803942,161.8003,189.94,189.82,0.063]
[1739716804244,44.7509,189.94,189.82,0.063]
[1739716804449,18.4268,189.94,189.83,1.6524]
[1739716804653,18.4268,189.94,189.84,6.2438]
[1739716804850,13.162,189.94,189.84,6.2438]
[1739716805022,14.41184853,189.93,189.82,0.063]
[1739716805347,13.41184853,189.91,189.82,0.063]
[1739716806222,5.2653,189.92,189.83,1.6524]
[1739716806429,5.2639,189.97,189.84,6.2438]
[1739716806748,5.2639,189.97,189.84,7.03367364]
[1739716806926,5.2639,189.97,189.86,13.41184853]
[1739716807122,13.1566,190.02,189.87,0.78968105]
[1739716807345,5.2617,190.05,189.9,1.0]
[1739716807643,5.2617,190.05,189.92,13.41184853]
[1739716807827,13.1516,190.1,189.94,13.41184853]
[1739716808029,0.03,190.11,189.96,7.8962]
[1739716808233,5.2901,190.11,189.96,13.94958473]
[1739716808435,18.4403,190.11,189.96,13.1603]
[1739716808743,4.44,190.1,189.96,13.1603]
[1739716809141,13.41184853,190.09,189.96,7.8962]
[1739716809540,13.41184853,190.1,189.96,7.8962]
[1739716810038,13.1585,189.99,189.86,7.8368]
[1739716810237,5.2628,190.01,189.87,0.78976783]
[1739716810450,5.2628,190.01,189.9,13.41184853]
[1739716810630,5.2628,190.01,189.91,0.7894981]
[1739716811331,5.262,190.04,189.91,0.7894981]
[1739716811652,5.262,190.04,189.91,6.0549981]
[1739716812030,5.262,190.04,189.92,13.41184853]
[1739716812272,25.89276557,190.05,189.95,13.41184853]
[1739716812552,5.2616,190.06,189.96,0.78931137]